bitfinex-derivatives/quotes_ETHF0:USTF0_20251204
["timestamp","ask_amount","ask_price","bid_price","bid_amount"]
[1764889085917,57.26533677,3145.6,3145.5,0.4436]
[1764889087915,0.15893,3145.5,3145.0,0.4337]
[1764889088117,1.51509299,3145.1,3145.0,0.4337]
[1764889088315,14.84398322,3145.1,3145.0,0.4337]
[1764889098127,15.16471973,3145.1,3145.0,0.4337]
[1764889101328,14.3678295,3145.1,3145.0,0.4337]
[1764889102130,15.16678597,3145.1,3145.0,0.4337]
[1764889102329,12.85273651,3145.1,3145.0,0.4337]
[1764889102830,13.81067407,3145.1,3144.8,0.00477183]
[1764889103029,3.90623493,3145.0,3144.8,0.00477183]
[1764889103222,1.11973407,3144.9,3144.8,0.00477183]
[1764889112440,1.11973407,3144.9,3144.8,0.78727183]
[1764889113436,1.11973407,3144.9,3144.8,0.00477183]
[1764889116345,1.11973407,3144.9,3144.8,0.78727183]
[1764889116550,1.11973407,3144.9,3144.8,0.00477183]
[1764889116749,1.11956941,3144.9,3144.8,0.00477183]
[1764889118453,1.11956941,3144.9,3144.8,1.47837183]
[1764889120041,1.1434488,3145.5,3145.3,1.4736]
[1764889120353,13.6764488,3145.5,3145.4,0.7323]
[1764889120653,14.79545097,3145.5,3145.4,1.4736]
[1764889120853,13.65200217,3145.5,3145.4,0.7323]
[1764889121155,13.65200217,3145.5,3145.0,0.453]
[1764889121353,1.11900217,3145.4,3145.3,1.4736]
[1764889129160,1.11884035,3145.4,3145.3,1.4736]
[1764889129360,1.1188126,3145.4,3145.3,1.4736]
[1764889129666,0.79843829,3145.4,3145.3,1.4736]
[1764889130064,1.11881149,3145.4,3145.3,1.4736]
[1764889131062,0.79843829,3145.4,3145.3,1.4736]
[1764889135661,0.79843829,3145.4,3145.3,0.7323]
[1764889135863,0.15894,3145.1,3145.0,0.453]
[1764889136056,15.13143035,3145.1,3145.0,0.453]
[1764889136260,15.45178621,3145.1,3145.0,0.453]
[1764889138066,16.59523501,3145.1,3144.5,0.44067581]
[1764889138364,1.1188459,3145.0,3144.5,0.44067581]
[1764889138559,1.1188459,3144.9,3144.5,0.44067581]
[1764889138755,0.79843829,3144.8,3144.7,0.7706]
[1764889140067,0.79843829,3144.8,3144.7,1.4896]
[1764889144469,0.79843829,3144.8,3144.5,1.16097581]
[1764889144770,2.44149035,3144.7,3144.6,1.4385]
[1764889145174,43.24149035,3144.7,3144.6,1.4385]
[1764889145379,43.24149035,3144.7,3144.5,0.44067581]
[1764889145672,13.65080662,3144.6,3144.5,0.20393722]
[1764889146172,14.79425542,3144.6,3144.5,0.20393722]
[1764889146672,14.79425542,3144.6,3144.5,0.20780502]
[1764889147260,13.65080662,3144.6,3144.5,0.20780502]
[1764889153578,14.95322542,3144.6,3144.4,0.00477183]
[1764889153778,1.11880662,3144.5,3144.4,0.00477183]
[1764889154374,1.11880662,3144.5,3144.4,0.00872674]
[1764889155275,0.79843829,3144.5,3144.4,1.44722674]
[1764889155574,1.71293313,3145.0,3144.4,1.44722674]
[1764889155575,2.95022269,3145.1,3145.0,1.1697]
[1764889155882,15.45986613,3145.1,3145.0,1.1697]
[1764889156077,56.25986613,3145.1,3145.0,1.8879]
[1764889156373,41.60512923,3145.1,3145.0,1.8879]
[1764889156575,53.33777183,3145.1,3145.0,1.8879]
[1764889162390,12.53777183,3145.1,3145.0,1.8879]
[1764889173797,12.53777183,3145.1,3145.0,1.1697]
[1764889174600,12.53777183,3145.1,3145.0,1.8939]
[1764889175499,12.53777183,3145.1,3145.0,1.1697]
[1764889175688,12.53777183,3145.1,3145.0,1.8939]
[1764889176303,12.53777183,3145.1,3145.0,1.1697]
[1764889178404,12.53777183,3145.1,3145.0,1.8939]
[1764889178803,12.53777183,3145.1,3145.0,1.1697]
[1764889179005,12.53777183,3145.1,3145.0,0.4494]
[1764889179510,12.53777183,3145.1,3145.0,1.1594]
[1764889180506,12.53777183,3145.1,3145.0,1.8836]
[1764889181507,13.3387247,3145.1,3145.0,1.8836]
[1764889181708,13.3387247,3145.1,3145.0,1.1594]
[1764889183110,13.3387247,3145.1,3145.0,0.4494]
[1764889183513,13.3387247,3145.1,3145.0,1.1594]
[1764889184318,13.3387247,3145.1,3145.0,0.4494]
[1764889184905,13.3387247,3145.1,3144.4,1.52499412]
[1764889185111,0.15897,3144.5,3144.0,0.4252]
[1764889185312,1.51626738,3144.2,3144.0,0.4252]
[1764889185512,13.33095287,3144.1,3144.0,1.1352]
[1764889186011,13.33095287,3144.1,3144.0,1.13744662]
[1764889188115,13.33095287,3144.1,3144.0,0.42744662]
[1764889188310,12.53,3144.1,3144.0,0.42744662]
[1764889194006,53.33,3144.1,3144.0,0.42744662]
[1764889196916,53.33,3144.1,3144.0,1.91844662]
[1764889198123,53.33,3144.1,3144.0,1.18864662]
[1764889198721,53.33,3144.1,3144.0,1.91844662]
[1764889200219,53.33,3144.1,3144.0,1.18864662]
[1764889200522,53.33,3144.1,3144.0,1.91844662]
[1764889200720,1.51626738,3144.5,3144.4,1.491]
[1764889200923,0.15896,3144.9,3144.8,0.7612]
[1764889201129,1.51626738,3144.8,3144.0,0.42744662]
[1764889201423,1.67525738,3144.1,3144.0,0.42744662]
[1764889201625,10.42883809,3144.1,3144.0,0.00224662]
[1764889202019,57.54848151,3144.1,3144.0,0.00224662]
[1764889202215,0.159,3144.0,3142.5,0.4269]
[1764889202428,1.51626738,3143.6,3142.5,0.4269]
[1764889202625,14.05426738,3143.6,3142.5,0.4269]
[1764889203126,14.056741,3143.6,3143.5,0.44725746]
[1764889203730,14.056741,3143.6,3143.5,1.20845746]
[1764889204227,14.056741,3143.6,3143.5,1.93825746]
[1764889205123,14.056741,3143.6,3143.5,0.44725746]
[1764889206223,14.057741,3143.6,3143.5,0.44725746]
[1764889207231,14.85870012,3143.6,3143.5,0.00365746]
[1764889207422,14.057741,3143.6,3143.5,0.00365746]
[1764889207831,12.54147362,3143.6,3143.5,0.43795746]
[1764889208223,13.34243467,3143.6,3143.5,0.43795746]
[1764889208433,12.54147362,3143.6,3143.5,0.43795746]
[1764889209233,13.34248084,3143.6,3143.5,0.43795746]
[1764889210031,12.54147362,3143.6,3143.5,0.43795746]
[1764889211034,13.34250696,3143.6,3143.5,0.43795746]
[1764889211234,13.34250696,3143.6,3143.5,0.00365746]
[1764889211628,13.34250696,3143.6,3143.5,0.43795746]
[1764889216638,13.82166197,3143.6,3142.0,0.4269]
[1764889216837,13.82166197,3143.6,3141.5,1.1797]
[1764889216838,3.03253476,3142.1,3141.5,1.1797]
[1764889217133,6.31200428,3142.0,3141.5,1.9046]
[1764889217337,6.048,3141.9,3141.5,1.9046]
[1764889217540,6.048,3141.9,3141.5,1.90745648]
[1764889217745,6.048,3141.9,3141.5,1.18255648]
[1764889217937,6.048,3141.9,3141.5,0.43715648]
[1764889218140,1.51626738,3141.6,3141.5,0.43715648]
[1764889221137,1.51626738,3141.6,3141.0,1.0523]
[1764889221339,3.03253476,3141.1,3141.0,0.618]
[1764889221641,3.03253476,3141.1,3141.0,1.0523]
[1764889221840,43.83253476,3141.1,3141.0,1.0523]
[1764889222041,43.83253476,3141.1,3141.0,0.618]
[1764889222340,57.19695399,3141.1,3141.0,0.62084851]
[1764889222541,56.39547765,3141.1,3141.0,0.62084851]
[1764889223043,57.19612668,3141.1,3141.0,0.62084851]
[1764889223244,56.39547765,3141.1,3141.0,0.62084851]
[1764889224237,56.39547765,3141.1,3140.5,0.4343]
[1764889224444,1.64811337,3140.6,3140.0,1.1797]
[1764889224647,1.64811337,3140.1,3140.0,0.4343]
[1764889224842,0.15923,3139.5,3138.5,1.1797]
[1764889225040,1.64811337,3138.6,3138.5,1.9046]
[1764889225237,40.8033619,3138.6,3138.5,1.90839838]
[1764889225444,10.2364,3138.6,3138.5,0.43809838]
[1764889225644,10.2364,3138.6,3138.5,1.90839838]
[1764889225946,10.2364,3138.6,3138.5,7.90839838]
[1764889226239,11.7499,3138.6,3138.5,1.90839838]
[1764889226432,11.75215812,3138.6,3138.5,1.47409838]
[1764889226631,14.10975812,3138.6,3138.5,1.47409838]
[1764889226931,14.10975812,3138.6,3138.5,0.74919838]
[1764889227132,13.37005812,3138.6,3138.5,1.90839838]
[1764889227333,0.00225812,3138.6,3138.5,1.90839838]
[1764889229445,0.77605812,3138.6,3138.5,1.90839838]
[1764889229747,1.51575812,3138.6,3138.5,1.47409838]
[1764889231746,12.59925812,3138.6,3138.5,1.90839838]
[1764889232054,12.597,3138.8,3138.5,6.43809838]
[1764889232248,12.597,3138.8,3138.7,1.4703]
[1764889232641,40.8,3139.2,3139.1,1.4703]
[1764889232842,14.1105,3139.2,3139.1,1.4703]
[1764889233247,14.11288205,3139.2,3139.1,1.4703]
[1764889233544,0.77618205,3139.2,3139.1,1.4703]
[1764889233741,13.37318205,3139.2,3139.1,1.4703]
[1764889234247,14.11288205,3139.2,3139.1,1.4703]
[1764889234946,0.00238205,3139.2,3139.1,1.4703]
[1764889235246,1.51938205,3139.2,3139.1,1.4703]
[1764889235442,40.8,3139.9,3139.2,1.5024]
[1764889235643,12.598,3139.7,3139.6,1.5024]
[1764889236443,14.06018275,3139.7,3139.0,0.4343]
[1764889236644,14.06495458,3139.7,3139.0,0.43907183]
[1764889236837,14.06495458,3139.7,3139.6,0.7662]
[1764889237641,14.06495458,3139.7,3139.6,1.5024]
[1764889237847,0.00765458,3139.7,3139.6,1.5024]
[1764889239645,0.74005458,3139.7,3139.6,1.5024]
[1764889239849,1.46695458,3139.7,3139.6,1.5024]
[1764889241259,0.74005458,3139.7,3139.6,1.5024]
[1764889241855,1.46695458,3139.7,3139.6,1.5024]
[1764889244053,1.48835458,3139.7,3139.6,1.5024]
[1764889244557,0.00765458,3139.7,3139.6,1.5024]
[1764889249363,0.81125243,3139.7,3139.6,1.5024]
[1764889254863,0.4274,3139.5,3139.0,0.00477183]
[1764889255053,1.4807,3138.6,3138.5,0.00379838]
[1764889255364,1.9081,3138.0,3137.5,0.4659]
[1764889255659,0.7425,3137.6,3137.5,1.9055]
[1764889256062,1.4807,3137.3,3137.2,0.15934]
[1764889256256,3.93764523,3137.3,3136.0,0.4659]
[1764889256566,1.48366769,3137.3,3136.2,0.15939]
[1764889256764,0.80497834,3137.2,3136.2,0.15939]
[1764889256961,0.00296769,3137.3,3136.2,0.15939]
[1764889257167,0.80498535,3137.2,3136.5,0.46887785]
[1764889257367,0.00296769,3137.3,3136.5,0.46887785]
[1764889257666,0.80419791,3137.2,3136.5,0.46887785]
[1764889257858,0.00296769,3137.3,3136.5,0.46887785]
[1764889258056,1.54239777,3137.2,3136.5,0.00297785]
[1764889258254,1.5467999,3137.1,3137.0,1.4396]
[1764889258557,0.7425,3137.1,3137.0,1.4396]
[1764889258867,1.4807,3137.1,3137.0,1.4396]
[1764889259864,1.4807,3136.6,3136.5,1.90847785]
[1764889260065,1.4807,3136.6,3136.5,1.44257785]
[1764889260269,1.4807,3136.6,3136.5,0.00297785]
[1764889260863,1.4807,3136.6,3136.5,0.73027785]
[1764889261463,1.4807,3136.6,3136.5,0.00297785]
[1764889263267,1.4807,3136.6,3136.5,0.00103115]
[1764889264166,0.7776,3137.0,3136.9,1.5225]
[1764889264964,1.54396769,3137.3,3137.2,1.5225]
[1764889265171,0.00296769,3137.3,3137.2,1.5225]
[1764889265371,0.00296769,3137.3,3137.2,7.5225]
[1764889265871,0.00296769,3137.3,3137.2,1.5225]
[1764889266061,0.00477966,3137.9,3137.8,1.5225]
[1764889266971,0.00779908,3137.9,3137.8,1.5225]
[1764889276987,0.78539908,3137.9,3137.8,1.5225]
[1764889277270,1.54879908,3137.9,3137.8,1.5225]
[1764889277577,0.00779908,3137.9,3137.8,1.5225]
[1764889281084,0.78539908,3137.9,3137.8,1.5225]
[1764889281280,0.00779908,3137.9,3137.8,1.5225]
[1764889281681,0.78539908,3137.9,3137.8,1.5225]
[1764889281876,1.54879908,3137.9,3137.5,0.59123]
[1764889282182,1.54879908,3137.9,3137.0,0.4319]
[1764889282183,0.7776,3137.1,3137.0,1.9544]
[1764889282371,2.0056,3137.5,3137.4,0.7648]
[1764889282576,1.541,3137.1,3137.0,1.9544]
[1764889282874,1.541,3137.1,3137.0,1.5225]
[1764889283183,1.541,3137.1,3137.0,1.9544]
[1764889283184,0.7776,3137.1,3137.0,1.9544]
[1764889283576,1.541,3137.1,3137.0,1.9544]
[1764889283982,0.7776,3137.1,3137.0,1.9544]
[1764889285382,14.6216,3137.5,3137.4,0.7648]
[1764889285582,0.7776,3137.1,3137.0,1.9544]
[1764889285785,14.6216,3137.5,3137.4,0.7648]
[1764889286385,14.6216,3137.5,3137.0,0.4319]
[1764889286684,0.7776,3137.1,3137.0,1.9544]
[1764889288390,14.6216,3137.5,3137.4,1.5225]
[1764889288785,14.6216,3137.5,3137.4,0.7648]
[1764889288985,12.616,3137.5,3137.4,1.5225]
[1764889289181,0.7776,3137.1,3137.0,1.1967]
[1764889289387,0.7776,3137.1,3137.0,1.9544]
[1764889290489,13.0806,3137.5,3137.0,1.9544]
[1764889291586,0.7776,3137.1,3137.0,1.9544]
[1764889292690,14.6216,3137.5,3137.4,0.7648]
[1764889292893,0.7776,3137.1,3137.0,1.9544]
[1764889293095,1.541,3136.9,3136.3,0.15939]
[1764889293295,0.7776,3136.9,3136.8,1.5225]
[1764889293793,1.541,3136.9,3136.8,1.5225]
[1764889294292,40.8,3137.4,3137.3,1.5125]
[1764889294489,0.80674253,3137.4,3137.3,1.5125]
[1764889294792,2.32563849,3137.6,3137.5,1.5125]
[1764889294996,2.32563846,3137.6,3137.5,1.5125]
[1764889295585,2.32563846,3137.6,3137.5,0.7649]
[1764889295785,2.32563846,3137.6,3137.5,1.5125]
[1764889296597,1.56893846,3137.6,3137.5,1.5125]
[1764889296804,1.56893846,3137.6,3137.5,1.9794]
[1764889298094,2.32563846,3137.6,3137.5,1.9794]
[1764889299699,2.32563846,3137.6,3137.5,1.5125]
[1764889301301,1.5189,3137.6,3137.5,1.5125]
[1764889302297,14.1309,3137.6,3137.5,1.9794]
[1764889303101,0.7622,3137.6,3137.5,1.9794]
[1764889303298,13.3732,3137.6,3137.5,1.9794]
[1764889303502,40.8,3137.8,3137.7,1.4487]
[1764889303802,54.21416579,3137.8,3137.7,1.4487]
[1764889304701,41.60316579,3137.8,3137.7,1.4487]
[1764889304899,54.21316579,3137.8,3137.7,1.4487]
[1764889305399,41.60316579,3137.8,3137.7,1.4487]
[1764889305604,13.3784,3137.8,3137.7,1.4487]
[1764889306501,40.80779908,3137.9,3137.1,0.7376]
[1764889306502,1.5483,3137.2,3137.1,0.7376]
[1764889306692,14.1653,3137.2,3137.1,0.7376]
[1764889310204,14.1633,3137.2,3137.1,0.7376]
[1764889310595,40.8,3137.3,3136.3,2.80470993]
[1764889310596,0.7684,3137.3,3137.2,1.4487]
[1764889310795,14.1633,3137.3,3137.2,1.4487]
[1764889311802,1.5483,3137.8,3137.7,0.7376]
[1764889311996,14.96717458,3137.8,3137.7,0.7376]
[1764889313103,14.18927458,3137.8,3137.7,1.4487]
[1764889313309,13.3844,3137.8,3137.7,1.4487]
[1764889313608,14.1643,3137.8,3137.7,1.4487]
[1764889313807,54.9643,3137.8,3137.7,1.4487]
[1764889314006,14.1643,3137.8,3137.7,1.4487]
[1764889314597,1.5483,3137.8,3137.7,0.7376]
[1764889314803,14.1643,3137.8,3137.7,0.7376]
[1764889315611,1.5483,3137.6,3137.5,1.4487]
[1764889316810,1.5483,3137.6,3137.5,0.7376]
[1764889317403,1.5483,3137.6,3137.5,1.4487]
[1764889318006,1.5483,3137.6,3137.5,0.7376]
[1764889319214,1.5483,3137.6,3137.5,1.4487]
[1764889320714,0.7684,3137.6,3137.5,1.894]
[1764889320911,13.3794,3137.6,3137.5,1.894]
[1764889321207,14.1593,3137.6,3137.5,1.894]
[1764889321409,40.80779908,3137.9,3137.8,1.4487]
[1764889321605,54.22312594,3137.9,3137.8,1.4487]
[1764889321810,54.22212594,3137.9,3137.8,1.4487]
[1764889322223,14.97042594,3137.9,3137.8,1.4487]
[1764889323030,2.36042594,3137.9,3137.8,1.4487]
[1764889323229,14.18952594,3137.9,3137.8,1.4487]
[1764889323529,14.96942594,3137.9,3137.8,1.4487]
[1764889323730,0.00779908,3137.9,3137.8,1.4487]
[1764889323929,12.61679908,3137.9,3137.8,1.4487]
[1764889324130,13.38519908,3137.9,3137.8,1.4487]
[1764889324330,14.14059908,3137.9,3137.8,1.4487]
[1764889324531,14.14059908,3137.9,3137.8,0.7376]
[1764889325030,14.14059908,3137.9,3137.8,1.4592]
[1764889327223,1.53159908,3137.9,3137.8,1.4592]
[1764889327521,14.14059908,3137.9,3137.8,1.4592]
[1764889328826,1.53159908,3137.9,3137.8,1.4592]
[1764889329032,1.1659,3138.5,3138.4,0.7267]
[1764889329226,16.05164204,3138.5,3138.4,0.7267]
[1764889329427,4.24888242,3138.5,3138.4,0.7267]
[1764889329633,10.59988242,3138.5,3138.4,0.7267]
[1764889330131,10.60280332,3138.5,3138.4,0.7267]
[1764889330433,0.74327966,3138.8,3138.7,1.4483]
[1764889330728,1.49867966,3138.8,3138.7,1.4483]
[1764889330935,0.74327966,3138.8,3138.7,1.4483]
[1764889331535,0.74695314,3138.8,3138.7,1.45183142]
[1764889332130,1.50235314,3138.8,3138.7,1.45183142]
[1764889335432,0.74695314,3138.8,3138.7,1.45183142]
[1764889336535,1.50235314,3138.8,3138.7,1.45183142]
[1764889336731,7.50235314,3138.8,3138.1,0.00477966]
[1764889336935,1.4939,3138.2,3138.1,0.00477966]
[1764889337137,14.1009,3138.2,3138.1,0.00477966]
[1764889337838,14.1009,3138.2,3138.1,0.007585]
[1764889338340,54.9009,3138.2,3138.1,0.007585]
[1764889341041,54.9009,3138.2,3138.1,0.734285]
[1764889341232,54.9009,3138.2,3138.1,0.007585]
[1764889341541,54.8989,3138.2,3138.1,1.455885]
[1764889341939,14.0989,3138.2,3138.1,1.455885]
[1764889342138,1.4939,3138.2,3138.1,1.455885]
[1764889342334,10.5615,3138.2,3138.1,1.455885]
[1764889342744,11.3169,3138.2,3138.1,1.455885]
[1764889342943,10.5615,3138.2,3138.1,1.455885]
[1764889343439,1.50235314,3138.8,3138.7,1.4483]
[1764889343643,4.96335314,3138.8,3138.7,1.4483]
[1764889343844,1.4939,3138.2,3138.1,1.455885]
[1764889345141,1.4939,3138.2,3138.1,0.734285]
[1764889345535,1.4939,3138.2,3138.1,0.007585]
[1764889346242,1.4939,3138.2,3138.1,0.734285]
[1764889349749,1.4939,3138.2,3138.1,0.007585]
[1764889350351,1.4939,3138.2,3138.1,0.734285]
[1764889351048,1.4939,3138.2,3138.1,1.455885]
[1764889351351,1.50235314,3138.8,3138.7,1.4483]
[1764889351547,14.10435314,3138.8,3138.7,0.7267]
[1764889351748,1.50235314,3138.8,3138.7,0.7267]
[1764889351947,14.10335314,3138.8,3138.7,0.7267]
[1764889352145,14.10435314,3138.8,3138.7,0.7267]
[1764889352556,14.10435314,3138.8,3138.7,1.4483]
[1764889352751,14.10435314,3138.8,3138.7,0.7267]
[1764889353449,1.50235314,3138.8,3138.7,0.7267]
[1764889353648,14.10335314,3138.8,3138.3,0.15929]
[1764889353849,1.4939,3138.4,3138.3,0.88599]
[1764889354260,1.4939,3138.4,3138.3,1.59349]
[1764889355454,1.50665314,3138.8,3138.7,0.7451]
[1764889355646,0.7724,3138.4,3138.3,0.90439]
[1764889355955,0.7724,3138.4,3138.3,1.61189]
[1764889356660,1.4982,3138.4,3138.3,1.61189]
[1764889357258,0.7724,3138.4,3138.3,1.61189]
[1764889357759,13.3714,3138.7,3138.6,1.4526]
[1764889357960,14.0972,3138.7,3138.6,1.4526]
[1764889358656,14.0962,3138.7,3138.6,1.4526]
[1764889358857,1.4982,3138.7,3138.6,1.4526]
[1764889359157,0.00845314,3138.8,3138.7,1.61187]
[1764889359359,1.50665314,3138.8,3138.7,1.61187]
[1764889362156,0.78085314,3138.8,3138.7,1.61187]
[1764889363058,40.8,3139.4,3138.7,1.61187]
[1764889363059,12.595,3139.2,3138.7,1.61187]
[1764889363260,14.0789,3139.2,3139.1,1.4711]
[1764889364061,14.08135853,3139.2,3139.1,1.4711]
[1764889364964,1.48735853,3139.2,3139.1,1.4711]
[1764889366554,1.4968,3139.1,3139.0,0.15925]
[1764889367563,1.4968,3139.1,3139.0,0.89825]
[1764889370666,1.4968,3139.1,3139.0,1.62425]
[1764889373570,14.0858,3139.1,3139.0,1.62425]
[1764889373869,14.0838,3139.1,3139.0,1.62425]
[1764889376473,1.4968,3139.1,3139.0,1.62425]
[1764889376670,14.0828,3139.1,3139.0,1.62425]
[1764889377167,14.0818,3139.1,3139.0,1.62425]
[1764889380675,0.00245853,3139.2,3139.1,1.62425]
[1764889380874,14.08557966,3139.5,3139.4,1.465]
[1764889381674,0.78907966,3139.5,3139.4,1.62423]
[1764889381868,1.96266269,3139.5,3139.4,0.15923]
[1764889382473,1.4968,3138.4,3138.3,3.54370993]
[1764889382678,1.4968,3138.4,3138.3,0.89829]
[1764889383073,0.4575,3139.0,3138.3,0.739]
[1764889383275,14.0848,3138.9,3138.8,0.726]
[1764889383577,14.0848,3138.9,3138.8,1.62426]
[1764889384180,14.0848,3138.9,3138.1,2.81229493]
[1764889384374,0.7284,3138.2,3138.1,1.656185]
[1764889388280,12.588,3138.9,3138.2,0.15929]
[1764889388581,12.588,3138.9,3138.1,1.496885]
[1764889388582,0.7284,3138.4,3138.3,1.64859]
[1764889389082,13.032,3139.0,3138.5,0.4468]
[1764889389384,0.7284,3138.6,3138.5,1.9361]
[1764889389782,1.4739,3138.6,3138.5,1.9361]
[1764889391982,1.4739,3138.6,3138.5,2.09538]
[1764889392284,0.7284,3138.6,3138.5,2.09538]
[1764889392682,1.4739,3138.6,3138.5,1.64858]
[1764889393987,1.4739,3138.6,3138.5,0.15928]
[1764889394387,1.4739,3138.6,3138.5,0.89958]
[1764889395279,1.4739,3138.2,3138.1,0.007585]
[1764889395986,0.7284,3137.2,3137.1,4.45335993]
[1764889396191,1.4739,3137.2,3137.1,1.64865]
[1764889396486,0.444,3138.0,3137.1,5.60486816]
[1764889396693,0.7284,3138.4,3138.3,1.4893]
[1764889396897,0.7284,3138.2,3138.1,1.4893]
[1764889397086,1.4774054,3138.4,3138.3,1.4893]
[1764889397393,1.4774054,3138.4,3138.3,0.7403]
[1764889398090,0.0035054,3138.4,3138.3,1.64859]
[1764889398287,0.7284,3138.6,3138.5,1.9361]
[1764889398486,0.444,3139.0,3138.6,0.15927]
[1764889398787,0.444,3139.5,3139.4,1.4893]
[1764889398788,1.9179,3139.5,3139.4,1.4893]
[1764889398992,1.4739,3139.3,3139.2,0.15924]
[1764889399186,1.4739,3138.8,3138.7,1.4893]
[1764889399797,0.00410661,3139.3,3138.6,1.45054466]
[1764889400099,1.47867966,3139.6,3139.5,1.4893]
[1764889400391,1.4739,3139.4,3138.7,0.15927]
[1764889400697,1.4739,3139.4,3139.3,1.4893]
[1764889400898,0.7284,3139.4,3139.3,1.4893]
[1764889401097,1.47656911,3139.4,3139.3,1.4893]
[1764889401991,0.73106911,3139.4,3139.3,1.4893]
[1764889402388,0.7284,3139.3,3139.2,0.15924]
[1764889402594,1.4739,3139.3,3139.2,0.15924]
[1764889404001,1.4739,3139.3,3138.5,0.4468]
[1764889404194,0.00266911,3139.4,3139.3,1.4893]
[1764889404392,0.73106911,3139.4,3139.3,0.15924]
[1764889404598,1.4739,3138.8,3138.7,1.64857]
[1764889404800,0.7284,3138.8,3138.7,1.64857]
[1764889405290,1.47656911,3139.4,3139.3,1.4893]
[1764889405496,0.73106911,3139.4,3139.3,1.4893]
[1764889405997,0.00266911,3139.4,3139.3,1.4893]
[1764889406302,0.00266911,3139.4,3139.3,1.64854]
[1764889407595,1.4739,3139.1,3139.0,0.7403]
[1764889407803,1.9179,3139.0,3138.9,0.89956]
[1764889408303,1.9179,3139.0,3138.9,1.64856]
[1764889409101,1.47656911,3139.4,3139.3,1.4893]
[1764889409798,0.00266911,3139.4,3139.3,1.64854]
[1764889410000,1.47656911,3139.4,3139.3,1.64854]
[1764889410803,0.73106911,3139.4,3139.3,1.64854]
[1764889410999,0.00266911,3139.4,3139.3,1.64854]
[1764889411505,1.9179,3140.5,3140.4,0.7403]
[1764889411806,1.9179,3140.5,3140.4,1.4893]
[1764889411807,1.4739,3140.5,3140.4,1.4893]
[1764889412303,1.47801396,3140.5,3140.4,1.49188016]
[1764889412607,1.47801396,3140.5,3140.4,0.74288016]
[1764889413200,0.73251396,3140.5,3140.4,1.49188016]
[1764889414096,0.00411396,3140.5,3140.4,1.65106016]
[1764889414507,0.00477966,3140.8,3140.7,1.4993]
[1764889414702,0.75337966,3140.8,3140.7,1.4993]
[1764889415417,0.75720278,3140.8,3140.7,1.4993]
[1764889416212,1.50910278,3140.8,3140.7,1.4993]
[1764889416408,0.75720278,3140.8,3140.7,1.65847]
[1764889416608,0.7486,3141.1,3141.0,1.34955]
[1764889416814,0.7486,3141.1,3141.0,2.08585]
[1764889417005,42.7445,3141.5,3141.4,0.763]
[1764889417314,1.9445,3141.5,3141.4,0.763]
[1764889417511,0.7486,3141.2,3141.1,1.65845]
[1764889417705,0.75265025,3141.2,3141.1,1.65845]
[1764889418108,1.5005,3140.6,3140.5,0.92218]
[1764889418308,0.459,3141.0,3140.5,2.08588]
[1764889418602,1.9595,3141.0,3140.9,0.763]
[1764889419811,1.9595,3141.0,3140.9,1.4993]
[1764889420012,0.00405025,3141.2,3141.1,1.4993]
[1764889420013,0.75265025,3141.2,3141.1,1.4993]
[1764889420317,1.50455025,3141.2,3141.1,1.65845]
[1764889421013,0.00405025,3141.2,3141.1,1.65845]
[1764889421222,1.9445,3142.0,3141.9,0.763]
[1764889421412,1.5005,3141.7,3141.6,0.15912]
[1764889421619,1.5005,3141.7,3141.0,0.4274]
[1764889421807,1.5005,3141.7,3140.9,0.15915]
[1764889421808,0.7486,3140.6,3140.5,1.9267]
[1764889422118,1.5005,3140.5,3140.4,1.66106016]
[1764889422315,1.50344632,3140.5,3140.4,0.92476016]
[1764889422518,1.50344632,3140.5,3140.4,1.66106016]
[1764889422714,1.96244632,3140.5,3140.4,0.00258016]
[1764889424418,1.5002,3140.2,3140.1,0.00477966]
[1764889425222,0.7363,3140.2,3140.1,1.48897966]
[1764889425423,1.96214632,3140.5,3140.4,0.7761]
[1764889425623,1.96214632,3140.5,3140.4,0.00276149]
[1764889431325,10.65214632,3140.5,3140.4,0.00276149]
[1764889432326,1.5002,3140.2,3140.1,0.00477966]
[1764889432813,0.7363,3140.2,3140.1,1.48897966]
[1764889433019,1.5002,3140.2,3140.1,1.48897966]
[1764889433526,1.5002,3140.2,3140.1,0.16787343]
[1764889434214,1.5002,3140.2,3140.1,0.00867343]
[1764889435030,1.5002,3140.2,3140.1,0.78477343]
[1764889435229,1.5002,3140.2,3140.1,1.49287343]
[1764889435424,0.46344632,3140.5,3140.1,1.49287343]
[1764889435626,0.73924632,3140.5,3140.4,1.64338]
[1764889435824,1.50314632,3140.5,3140.4,1.64338]
[1764889440224,0.00294632,3140.5,3140.4,1.64338]
[1764889440429,1.50314632,3140.5,3140.4,1.64338]
[1764889441223,0.73924632,3140.5,3140.4,1.64338]
[1764889441429,1.50314632,3140.5,3140.4,1.64338]
[1764889442434,0.00294632,3140.5,3140.4,1.64338]
[1764889442727,0.73924632,3140.5,3140.4,1.64338]
[1764889442925,1.96364632,3140.5,3140.4,0.15918]
[1764889443132,1.96364632,3140.5,3140.4,0.93528]
[1764889443317,0.00294632,3140.5,3140.4,1.64338]
[1764889443520,0.00477966,3140.8,3140.7,1.64337]
[1764889443720,2.13409941,3142.0,3141.3,1.4842]
[1764889443721,0.7363,3141.4,3141.3,1.4842]
[1764889444025,1.9137,3142.0,3141.9,1.4784]
[1764889444225,0.7627,3142.0,3141.9,1.4784]
[1764889444526,1.93373998,3142.0,3141.9,0.7519]
[1764889444731,1.4697,3141.8,3141.7,1.63751]
[1764889445529,0.7627,3141.8,3141.7,1.63751]
[1764889445823,0.7627,3141.8,3141.7,0.15911]
[1764889445824,1.4697,3141.8,3141.7,0.15911]
[1764889446223,1.4697,3141.8,3141.7,0.91101]
[1764889446527,1.4697,3141.8,3141.7,1.63751]
[1764889448630,0.76513998,3142.0,3141.9,1.4784]
[1764889448831,0.00243998,3142.0,3141.9,1.4784]
[1764889449432,0.76513998,3142.0,3141.9,1.4784]
[1764889449834,1.47213998,3142.0,3141.9,1.4784]
[1764889450332,0.00243998,3142.0,3141.9,1.63751]